Cogmind - Beta 12 X1 @@@ ROGUE MODE // 2022.07.11 @ 18:32:28 Player: Boris Result: Core destroyed Performance ------------- Evolutions (6) 3000 Regions Visited (25) 5000 Robots Destroyed (273) 1365 Value Destroyed (12142) 12142 Prototype IDs (53) 1060 Alien Tech Used (0) 0 Bonus (6027) 6027 TOTAL SCORE: 28594 Bonus ------- High Alert Combat Kills 561 Follower Combat Kills 1073 Entered Garrisons 1600 Used RIF Installer 3000 Aligned with FarCom 300 Friendly Fire -507 Cogmind --------- Core Integrity 0/1150 Matter 267/300 Energy 64/600 System Corruption 8% Temperature Critical (575) Movement Immobile (Siege) Location -4/Garrison Parts ------- > --- POWER (2) -------- Quantum Reactor Quantum Reactor > --- PROPULSION (5) --- Biometal Heavy Treads Advanced Heavy Siege Treads Combat Linear Gravjet > --- UTILITY (8) ------ Improved Heat Sink Advanced Heat Sink Advanced Heat Sink Advanced Targeting Computer Advanced Transmission Jammer Advanced Phase Shifter Relay Coupler [NC] (30) > --- WEAPON (4) ------- Enhanced Quantum Rifle Enhanced Quantum Rifle Enhanced Nova Cannon Enhanced Nova Cannon > --- INVENTORY (5) ---- Combat Linear Gravjet Combat Linear Gravjet Combat Linear Gravjet Relay Coupler [Heavy] (14) Improved Remote Datajack Peak State ------------ > --- POWER ------------ Quantum Reactor Quantum Reactor > --- PROPULSION ------- Biometal Heavy Treads Advanced Heavy Siege Treads Combat Linear Gravjet > --- UTILITY ---------- Advanced Power Amplifier Improved Heat Sink Advanced Heat Sink Advanced Heat Sink Advanced Targeting Computer Advanced Transmission Jammer Advanced Phase Shifter Relay Coupler [NC] > --- WEAPON ----------- Enhanced Quantum Rifle Enhanced Quantum Rifle Enhanced Nova Cannon Enhanced Nova Cannon > --- INVENTORY -------- Combat Linear Gravjet Combat Linear Gravjet Combat Linear Gravjet Relay Coupler [Heavy] Improved Remote Datajack [Rating: 142] Favorites ----------- Power Light Angular Momentum Engine Engine Light Angular Momentum Engine Power Core Nuclear Core Reactor Antimatter Reactor Propulsion Light Treads Treads Light Treads Leg Armored Leg Hover Unit Combat Linear Gravjet Flight Unit Cesium-ion Thruster Utility Advanced Heat Sink Device Advanced Heat Sink Storage High-capacity Storage Unit Processor Advanced Targeting Computer Hackware Relay Coupler [NC] Protection Improved Medium Armor Plating Weapon Improved Assault Rifle Energy Gun Enhanced Quantum Rifle Energy Cannon Long-range Proton Cannon Ballistic Gun Improved Assault Rifle Ballistic Cannon Magnetic Acceleration Cannon Launcher Improved Grenade Launcher Special Weapon Remote Datajack Impact Weapon Great Maul Special Melee Weapon Datajack Build | -11 -10 -10 -9 -9 -9 -8 -8 -8 -8 -8 -8 -6 -6 -6 -6 -5 -5 -5 -5 -4 -4 -4 -4 -4 -4 ------- Run | Scr Mat Min Mat Min Exi Min Mat Gar Sto Gar Rec Fac Was Fac Gar Fac Gar Fac Gar Fac Gar Fac Gar Fac Gar Slots Evolved 12 | . . . 2 . . . 2 . . . . 4 . . . 2 . . . 2 . . . . . Power 1 | . . . . . . . . . . . . . . . . 1 . . . . . . . . . Propulsion 3 | . . . 1 . . . 1 . . . . . . . . . . . . 1 . . . . . Utility 6 | . . . 1 . . . . . . . . 4 . . . 1 . . . . . . . . . Weapon 2 | . . . . . . . 1 . . . . . . . . . . . . 1 . . . . . Parts Attached 348 | 6 5 8 13 3 2 2 21 17 2 34 3 8 5 10 35 28 32 41 7 13 37 2 3 . 11 Power 32 | 1 1 1 1 . . . 2 . . 2 1 . 1 . 4 3 1 5 1 1 5 . . . 2 Engine 11 | 1 1 1 . . . . . . . . 1 . 1 . 3 2 1 . . . . . . . . Core 12 | . . . 1 . . . 2 . . 2 . . . . . 1 . 4 1 . 1 . . . . Reactor 9 | . . . . . . . . . . . . . . . 1 . . 1 . 1 4 . . . 2 Propulsion 78 | 2 . 1 7 . . . 7 3 . 5 1 1 1 . 6 1 13 9 1 5 11 1 1 . 2 Treads 47 | 2 . 1 7 . . . 7 3 . 5 1 1 1 . 6 1 4 . . 1 4 . 1 . 2 Leg 17 | . . . . . . . . . . . . . . . . . 3 8 1 3 2 . . . . Wheel . | . . . . . . . . . . . . . . . . . . . . . . . . . . Hover 6 | . . . . . . . . . . . . . . . . . . . . . 5 1 . . . Flight 8 | . . . . . . . . . . . . . . . . . 6 1 . 1 . . . . . Utility 120 | 1 4 3 3 . 1 1 3 4 1 10 . 7 2 5 13 12 10 16 2 6 10 1 2 . 3 Device 55 | . 2 3 1 . . 1 2 3 . 1 . 3 1 1 8 4 3 7 . 2 7 1 2 . 3 Storage 3 | 1 . . 1 . . . . . . . . . 1 . . . . . . . . . . . . Processor 12 | . . . . . 1 . . . . . . 1 . . . 1 . 6 . 3 . . . . . Hackware 31 | . . . . . . . . 1 1 5 . 3 . 3 3 7 5 1 2 . . . . . . Protection 19 | . 2 . 1 . . . 1 . . 4 . . . 1 2 . 2 2 . 1 3 . . . . Artifact . | . . . . . . . . . . . . . . . . . . . . . . . . . . Weapon 118 | 2 . 3 2 3 1 1 9 10 1 17 1 . 1 5 12 12 8 11 3 1 11 . . . 4 Energy Gun 22 | 1 . 2 . . . . . . . 1 . . 1 . 2 1 4 . . . 8 . . . 2 Energy Cannon 15 | . . . . . . . . . . 1 . . . . 1 1 2 4 2 . 2 . . . 2 Ballistic Gun 24 | 1 . . 2 . . . 3 4 1 5 . . . . . 4 1 3 . . . . . . . Ballistic Cannon 14 | . . . . 2 . . 2 . . 3 . . . 1 3 1 . 1 . . 1 . . . . Launcher 12 | . . . . . . 1 3 2 . 2 1 . . 1 . 1 . 1 . . . . . . . Special Weapon 14 | . . . . . . . . . . 2 . . . 3 3 4 1 . . 1 . . . . . Impact Weapon 12 | . . . . 1 . . 1 3 . 1 . . . . 3 . . 2 1 . . . . . . Slashing Weapon . | . . . . . . . . . . . . . . . . . . . . . . . . . . Piercing Weapon . | . . . . . . . . . . . . . . . . . . . . . . . . . . Special Melee Weapon 5 | . . 1 . . 1 . . 1 . 2 . . . . . . . . . . . . . . . Unidentified Prototypes 7 | . . 1 1 . . . . . . . . . . . . . . 4 . 1 . . . . . Corrupted Parts 3 | . . . . . . . . . . 1 . 1 . . 1 . . . . . . . . . . System Corruption 38 | . . . . . . . . . . 15 . 8 . . 15 . . . . . . . . . . Parts Lost 104 | . 1 1 1 . . . 2 1 . 4 2 . . . 14 3 26 5 15 7 11 . 10 . 1 Power 19 | . 1 1 1 . . . 1 . . . 1 . . . 3 . 2 1 3 1 2 . 2 . . Propulsion 20 | . . . . . . . . . . 1 1 . . . 3 . 6 . 3 4 1 . 1 . . Utility 43 | . . . . . . . 1 1 . 1 . . . . 7 2 11 3 5 2 5 . 4 . 1 Weapon 22 | . . . . . . . . . . 2 . . . . 1 1 7 1 4 . 3 . 3 . . Highest Loss Streak 16 | . 1 1 1 . . . 2 1 . 2 1 . . . 8 2 16 2 12 7 7 . 9 . 1 To Critical Strikes . | . . . . . . . . . . . . . . . . . . . . . . . . . . Average Slot Usage (%) 89 | . 93 99 96 89 94 100 98 99 100 98 92 85 94 92 81 78 75 91 90 38 71 98 90 42 68 Engine 3 | . 11 13 8 . . . . . . . 5 6 6 6 2 10 2 . . . . . . . . Core 4 | . . . 1 11 11 11 8 9 9 9 . . . . . . 4 7 10 . . 5 4 . . Treads 20 | . 28 28 30 33 33 33 36 36 36 35 32 20 21 20 13 10 10 . . 2 2 . . . 8 Leg 2 | . . . . . . . . . . . . . . . . . . 19 20 7 3 . . . . Device 8 | . 5 13 11 11 11 11 5 6 . 3 9 7 12 4 5 4 4 7 10 5 14 26 23 15 22 Storage 6 | . 14 14 11 11 11 11 9 9 9 9 9 6 6 6 6 5 4 . . . . . . . . Processor 5 | . . . . . 5 11 9 . . . . 3 6 6 1 1 . 27 21 7 11 5 5 5 5 Hackware 10 | . . . . . . . . . 15 10 . 14 20 21 27 27 30 4 5 10 6 5 5 5 5 Protection 3 | . 5 . 11 1 . . 3 9 2 3 9 6 . 5 2 . . 2 4 . 3 5 4 . . Energy Gun 4 | . 14 27 4 . . . . . . 2 . . 4 . 1 2 4 . . . 10 15 11 . 5 Energy Cannon 1 | . . . . . . . . . . . . . . . . . 1 4 8 . 1 5 4 . 5 Ballistic Gun 4 | . 14 . 17 1 . . 12 19 20 6 . . . . . 6 7 5 1 . . . . . . Ballistic Cannon 4 | . . . . 11 11 11 6 . . 4 18 13 13 13 5 1 . . . . 2 . . . . Launcher 1 | . . . . . . 7 3 . . 1 8 6 1 . . . . . . . . . . . . Impact Weapon 2 | . . . . 9 1 . 2 5 . 5 . . . . 5 1 . 4 1 . . . . . . Naked Turns . | . . . . . . . . . . . . . . . . . . . . . . . . . . Heaviest Build 129 | 11 14 19 57 62 56 53 65 67 57 75 76 77 111 119 129 119 123 62 62 12 71 66 66 5 88 Greatest Support 155 | 40 40 40 60 60 60 60 80 80 80 100 100 100 120 120 150 150 150 70 70 30 155 78 78 51 155 Greatest Overweight (x) 9 | . . . . 1 . . . . . . . . . . 1 1 2 2 . . 9 . 1 1 1 Average Overweight (x) . | . . . . . . . . . . . . . . . . . . . . . . . . . . Largest Inventory Capacity 25 | 8 8 8 20 20 20 20 20 20 20 20 20 20 25 25 25 25 25 5 5 5 5 5 5 5 5 Average Capacity 17 | 6 8 8 17 20 20 20 20 20 20 20 20 20 24 25 25 25 23 5 5 5 5 5 5 5 5 Most Carried 25 | 3 8 8 20 20 20 20 20 20 20 20 20 20 25 25 25 25 25 5 5 5 5 5 5 5 5 Average Carried 16 | 1 6 7 13 19 19 20 19 19 20 19 19 19 22 24 24 22 21 4 4 4 4 5 4 5 4 Final Capacity 25 | 8 8 8 20 20 20 20 20 20 20 20 20 20 25 25 25 25 5 5 5 5 5 5 5 5 5 Final Carried 25 | 3 8 8 20 20 20 20 20 20 20 20 20 20 25 24 19 25 5 5 3 5 5 5 3 5 5 Class Distribution -------------------- 35% | Bothacker-Mutant 31% | Mutant 11% | Scavenger-Mutant 4% | Botlord-Mutant 4% | Bothacker-Skirmisher 3% | Scavenger-Skirmisher 3% | Skirmisher Dominant Class ---------------- Mutant | -10/Materials Scavenger-Mutant | -10/Mines Mutant | -9/Materials Mutant | -9/Mines Mutant | -9/Exiles Mutant | -8/Mines Mutant | -8/Materials Mutant | -8/Garrison Bothacker-Mutant | -8/Storage Bothacker-Mutant | -8/Garrison Bothacker-Mutant | -8/Recycling Bothacker-Mutant | -6/Factory Bothacker-Mutant | -6/Waste Bothacker-Mutant | -6/Factory Bothacker-Mutant | -6/Garrison Bothacker-Mutant | -5/Factory Botlord-Mutant | -5/Garrison Mutant | -5/Factory Scavenger-Mutant | -5/Garrison Mutant | -4/Factory Scavenger-Skirmisher | -4/Garrison Scavenger-Mutant | -4/Factory Scavenger-Skirmisher | -4/Garrison Mutant | -4/Factory Skirmisher | -4/Garrison Resources | -11 -10 -10 -9 -9 -9 -8 -8 -8 -8 -8 -8 -6 -6 -6 -6 -5 -5 -5 -5 -4 -4 -4 -4 -4 -4 ----------- Run | Scr Mat Min Mat Min Exi Min Mat Gar Sto Gar Rec Fac Was Fac Gar Fac Gar Fac Gar Fac Gar Fac Gar Fac Gar Matter Collected 7684 | 228 137 85 311 60 20 52 542 494 . 702 308 108 85 184 1097 812 960 704 54 20 574 . 70 . 77 Remotely . | . . . . . . . . . . . . . . . . . . . . . . . . . . Salvage Created 12268 | . 229 221 771 64 . 90 1123 666 . 553 462 . 666 106 1130 934 827 1709 728 . 1485 . 274 . 230 Parts 543 | . 9 17 52 1 . 3 76 25 . 44 36 . 15 15 25 44 32 68 26 . 38 . 8 . 9 Haulers Intercepted 5 | . 1 . 1 . . . 2 . . . . . . . . . . 1 . . . . . . . Recyclers Shooed 9 | . . . . . . . 4 . . . 4 . . . . . . 1 . . . . . . . Parts Field Recycled . | . . . . . . . . . . . . . . . . . . . . . . . . . . Retrieved Matter . | . . . . . . . . . . . . . . . . . . . . . . . . . . Parts Self-Destructed . | . . . . . . . . . . . . . . . . . . . . . . . . . . Prevented . | . . . . . . . . . . . . . . . . . . . . . . . . . . Kills | -11 -10 -10 -9 -9 -9 -8 -8 -8 -8 -8 -8 -6 -6 -6 -6 -5 -5 -5 -5 -4 -4 -4 -4 -4 -4 ------- Run | Scr Mat Min Mat Min Exi Min Mat Gar Sto Gar Rec Fac Was Fac Gar Fac Gar Fac Gar Fac Gar Fac Gar Fac Gar Combat Hostiles Destroyed 218 | . 2 4 15 . . 6 27 14 . 21 15 . . 4 14 13 15 20 12 . 25 . 5 . 6 Melee 10 | . . . . . . . 2 1 . 1 . . . . . . 1 4 1 . . . . . . Guns 94 | . 2 3 15 . . . 12 8 . 3 . . . . . 9 13 7 . . 17 . 3 . 2 Cannons 44 | . . . . . . 1 3 . . 3 . . . 1 11 . 1 9 3 . 6 . 2 . 4 AOE 47 | . . . . . . 5 6 3 . 11 15 . . 3 . 4 . . . . . . . . . Classes Destroyed 19 | . 4 1 4 1 . . 1 1 . 3 1 . . . . . 1 . 1 . 1 . . . . Worker 14 | . . . 4 2 . 1 1 . . . . . . 1 . 3 . 2 . . . . . . . Builder 8 | . 1 1 1 . . . 1 . . . . . . 2 . . . 2 . . . . . . . Tunneler 5 | . . . . 3 . . 1 . . . . . . . . . . 1 . . . . . . . Hauler 5 | . 1 . 1 . . . 2 . . . . . . . . . . 1 . . . . . . . Recycler 13 | . 1 . . . . . 1 . . . 6 . . . . 2 . 3 . . . . . . . Mechanic 3 | . . . 2 . . . . . . . . . . . . . . 1 . . . . . . . Drone 15 | . . . . . . . . . . . 15 . . . . . . . . . . . . . . Watcher 6 | . . . 4 . . . 1 . . . . . . . . 1 . . . . . . . . . Swarmer 58 | . . . 5 . . 4 9 1 . 12 . . . 3 . 4 1 5 3 . 5 . 2 . 4 Saboteur 1 | . . . . . . . . . . . . . . . . . 1 . . . . . . . . Grunt 73 | . 2 2 6 . . 2 11 9 . 3 . . . . 8 5 4 3 4 . 10 . 3 . 1 Brawler 1 | . . . . . . . . . . . . . . . . . . . 1 . . . . . . Duelist 1 | . . . . . . . . . . . . . . . . . . . . . 1 . . . . Sentry 28 | . . 2 4 . . . 6 . . 3 . . . . 3 1 1 2 1 . 5 . . . . Demolisher 1 | . . . . . . . . . . 1 . . . . . . . . . . . . . . . Specialist 9 | . . . . . . . . . . 1 . . . . . . 2 2 . . 4 . . . . Hunter 17 | . . . . . . . 1 1 . 1 . . . . 3 . 4 4 3 . . . . . . Programmer 14 | . . . . . . . . 3 . . . . . 1 . 3 2 4 . . . . . . 1 Behemoth 1 | . . . . . . . . . . 1 . . . . . . . . . . . . . . . Best Kill Streak 9 | . 2 2 8 4 . 7 8 6 . 8 9 . . 5 4 5 4 6 3 . 6 . 3 . 5 Combat Bots Only 8 | . 1 2 4 . . 6 6 6 . 8 4 . . 3 4 4 4 5 3 . 6 . 3 . 5 Max Kills in Single Turn 4 | . 1 1 2 1 . 3 3 2 . 4 3 . . 2 1 3 2 2 1 . 1 . 1 . 1 Gunslinging 1 | . . . 1 . . . 1 1 . . . . . . . 1 1 . . . . . . . . Exploded 4 | . . . . . . 3 3 2 . 4 2 . . 1 . 2 . . . . . . . . . Melee 1 | . . . . . . . 1 1 . 1 . . . . . . 1 1 1 . . . . . . Uniques/NPCs Destroyed . | . . . . . . . . . . . . . . . . . . . . . . . . . . Combat | -11 -10 -10 -9 -9 -9 -8 -8 -8 -8 -8 -8 -6 -6 -6 -6 -5 -5 -5 -5 -4 -4 -4 -4 -4 -4 -------- Run | Scr Mat Min Mat Min Exi Min Mat Gar Sto Gar Rec Fac Was Fac Gar Fac Gar Fac Gar Fac Gar Fac Gar Fac Gar Damage Taken 21485 | . 325 173 489 . . 135 853 746 368 1595 251 62 . 162 3102 838 3228 1719 1518 1229 2289 . 1203 . 1200 Core 2946 | . 60 28 57 . . 36 94 104 . 168 2 . . 14 206 39 576 121 234 437 220 . 267 . 283 Absorbed by Shields 790 | . . . . . . . . 12 . . . . . . . . 20 . . . 475 . 233 . 50 Reduced by Siege Mode 529 | . . . . . . . . . . . . . . . 85 52 44 . . . 39 . . . 309 Redirected to Shielding 60 | . . . . . . . . . . . . . . . . . 11 49 . . . . . . . Regen/Repaired (Parts) 331 | . . . . . . . 40 . . . . . . . . 291 . . . . . . . . . Core Remaining (%) 58 | 100 . 64 . . . 76 . . . . 33 . . . 74 . . . 3 . . . . . . Volleys Fired 678 | . 24 17 57 . . 5 47 28 5 54 22 . 20 14 99 39 59 46 27 1 75 1 15 . 23 Largest 4 | . 2 2 2 . . 1 3 3 3 3 2 . 1 3 3 3 3 3 2 1 4 1 4 . 4 Hottest 370 | . 70 115 121 . . 48 96 69 69 182 101 . 81 149 176 99 232 171 162 7 272 120 331 . 370 Shots Fired 1295 | . 46 31 114 . . 5 118 58 14 70 24 . 22 16 125 70 138 95 53 1 174 2 51 . 68 Gun 873 | . 46 31 114 . . . 90 48 14 40 1 . 20 . 42 51 120 49 . . 134 1 37 . 35 Cannon 329 | . . . . . . 2 22 . . 22 4 . 1 5 73 2 11 46 53 . 40 1 14 . 33 Launcher 48 | . . . . . . 3 6 10 . 3 19 . 1 3 . 3 . . . . . . . . . Special 45 | . . . . . . . . . . 5 . . . 8 10 14 7 . . 1 . . . . . Kinetic 592 | . 24 5 72 . . 2 112 48 14 35 4 . 1 5 68 52 74 49 . . 27 . . . . Thermal 550 | . 22 26 42 . . . . . . 26 1 . 20 . 42 1 57 45 . . 147 2 51 . 68 Explosive 38 | . . . . . . 3 6 . . 3 19 . 1 3 . 3 . . . . . . . . . Electromagnetic 70 | . . . . . . . . 10 . 1 . . . . 5 . . 1 53 . . . . . . Robot Hit Streak 36 | . 8 13 20 . . 1 18 21 7 13 6 . 19 29 36 15 10 28 17 1 25 . 10 . 12 Robot Miss Streak 4 | . 2 1 2 . . 2 3 2 2 1 1 . 1 . 4 1 4 2 1 . 3 . 3 . 2 Penetration Max 1 | . . . . . . . . . . . 1 . . . . 1 1 1 . . . . . . . Secondary Targets 10 | . . . 1 . . . 1 2 . . . . . . . 2 3 . . . 1 . . . . Max Gunslinging Chain 1 | . . . 1 . . . 1 1 . . . . . . . 1 1 . . . 1 . . . . Shots Hit Robots 989 | . 27 22 85 5 4 1 76 53 10 69 4 . 20 10 111 51 76 91 44 1 144 . 33 . 52 Core Hits 418 | . 10 9 34 1 . 11 52 24 1 24 22 . 5 9 32 30 28 36 14 . 56 . 9 . 11 Critical Kills 6 | . . . . 1 . . . . . . . . . . 1 1 1 1 1 . . . . . . Critical Parts Destroyed 28 | . . . . 1 . . 4 3 . 2 . . . . 2 3 4 8 1 . . . . . . Critical Strikes 63 | . . 2 3 2 . . 4 3 . 4 1 . 1 . 14 4 7 9 4 . 5 . . . . Burn 13 | . . 2 3 . . . . . . 1 . . 1 . 2 . 1 . . . 3 . . . . Destroy 15 | . . . . . . . . 1 . . . . . . . 4 6 4 . . . . . . . Blast 12 | . . . . . . . . . . . 1 . . . 9 . . . . . 2 . . . . Corrupt 2 | . . . . . . . . . . . . . . . . . . . 2 . . . . . . Smash 21 | . . . . 2 . . 4 2 . 3 . . . . 3 . . 5 2 . . . . . . Melee Attacks 189 | . . . . 7 4 . 21 31 1 42 . . . . 37 5 . 28 13 . . . . . . Impact 171 | . . . . 7 . . 21 26 . 34 . . . . 37 5 . 28 13 . . . . . . Slashing . | . . . . . . . . . . . . . . . . . . . . . . . . . . Piercing . | . . . . . . . . . . . . . . . . . . . . . . . . . . Sneak Attacks 25 | . . . . 5 4 . 1 4 . 2 . . . . 1 . . 7 1 . . . . . . Combat Hostiles 3 | . . . . . . . . 1 . 1 . . . . . . . . 1 . . . . . . Follow-up Attacks 2 | . . . . . . . . . . . . . . . . . . 2 . . . . . . . Damage Inflicted 33247 | . 276 279 1351 461 . 466 2162 1639 143 2399 1397 . 855 537 5053 1646 2048 3712 1756 6 3856 . 1131 . 2074 Guns 14085 | . 265 275 1351 . . . 866 567 143 685 . . 475 . 1069 1062 1839 1128 . . 2670 . 734 . 956 Cannons 9399 | . . . . . . 26 229 . . 344 115 . 28 32 3041 72 209 1288 1360 . 1186 . 351 . 1118 Explosions 4212 | . . . . . . 440 527 526 . 621 1206 . . 365 . 437 . . 90 . . . . . . Melee 4722 | . . . . 461 . . 505 546 . 749 . . . . 943 . . 1218 300 . . . . . . Ramming 829 | . 11 4 . . . . 35 . . . 76 . 352 140 . 75 . 78 6 6 . . 46 . . Kinetic 10595 | . 114 43 878 . . 26 1095 567 143 501 115 . 28 32 2913 1134 1130 1128 . . 748 . . . . Thermal 11620 | . 151 232 473 . . . . 113 . 514 . . 475 65 1069 . 918 1253 90 . 3108 . 1085 . 2074 Explosive 3531 | . . . . . . 440 527 . . 621 1206 . . 300 . 437 . . . . . . . . . Electromagnetic 1950 | . . . . . . . . 413 . 14 . . . . 128 . . 35 1360 . . . . . . Impact 4722 | . . . . 461 . . 505 546 . 749 . . . . 943 . . 1218 300 . . . . . . Slashing . | . . . . . . . . . . . . . . . . . . . . . . . . . . Piercing . | . . . . . . . . . . . . . . . . . . . . . . . . . . Highest Corruption 32 | . . . . . . . 1 6 6 21 21 10 10 11 32 4 6 9 9 3 6 7 7 7 8 Average Corruption 9 | . . . . . . . 1 2 6 10 21 8 10 10 11 3 5 8 9 2 6 6 7 7 7 Corruption Purged 2 | . . . . . . . . . . . . . . . . . 2 . . . . . . . . Corruption Blocked . | . . . . . . . . . . . . . . . . . . . . . . . . . . Effects 335 | . . . . . . . . 8 4 56 36 . 15 36 60 16 23 42 15 1 1 2 6 1 13 Message Errors 79 | . . . . . . . . 4 2 14 7 . 4 6 14 3 6 5 6 . . . 3 1 4 Matter Fused 77 | . . . . . . . . 2 1 13 9 . 1 10 12 5 5 13 2 1 . 1 1 . 1 Heat Flow Errors 42 | . . . . . . . . . . 3 5 . . 7 7 4 5 5 1 . 1 . . . 4 Energy Discharges 34 | . . . . . . . . 1 . 9 1 . 3 6 4 1 1 6 1 . . . . . 1 Parts Rejected 6 | . . . . . . . . . . 1 1 . . . 2 . . 1 1 . . . . . . Data Loss (minor) 44 | . . . . . . . . . . 11 6 . 3 3 9 . 4 4 1 . . . 1 . 2 Data Loss (major) 11 | . . . . . . . . 1 . . 3 . . 2 1 1 1 1 1 . . . . . . Misfires 13 | . . . . . . . . . . 1 1 . 2 . 4 . . 2 1 . . 1 . . 1 Alerts 12 | . . . . . . . . . . 2 1 . 2 1 1 2 . 2 1 . . . . . . Misdirections 6 | . . . . . . . . . . 1 1 . . 1 3 . . . . . . . . . . Weapon Failures 11 | . . . . . . . . . 1 1 1 . . . 3 . 1 3 . . . . 1 . . Overload Shots 6 | . . . . . . . . . . . . . . . . 1 . 5 . . . . . . . Overflow Damage 2252 | . . . . 300 . 3 206 152 . 268 83 . 10 2 339 16 . 672 107 . . . 21 . 73 Projectiles 248 | . . . . . . . . . . 1 . . . . 134 8 . . 11 . . . 21 . 73 Explosions 195 | . . . . . . 3 11 3 . 68 83 . . . . 8 . . 19 . . . . . . Melee 1809 | . . . . 300 . . 195 149 . 199 . . 10 2 205 . . 672 77 . . . . . . Knockbacks 51 | . . . . 3 . . 8 . . 12 1 . . 1 8 1 . 5 1 . 11 . . . . Impact 23 | . . . . 3 . . 5 . . 7 . . . 1 . 1 . 5 1 . . . . . . Kinetic 24 | . . . . . . . 1 . . 5 1 . . . 8 . . . . . 9 . . . . Secondary 4 | . . . . . . . 2 . . . . . . . . . . . . . 2 . . . . Self-Inflicted Damage 463 | . . . . . . 20 88 . . 63 151 . . 56 . . . . 64 . . . 21 . . Shots 13 | . . . . . . 1 2 . . 2 6 . . 1 . . . . 1 . . . . . . Rammed 77 | . 5 1 . . . 1 5 . . . 10 . 37 5 . 4 . . . . . . 9 . . Targets Rammed 94 | . 6 1 . . . 1 5 . . . 11 . 37 5 . 4 . 8 6 1 . . 9 . . Kicked 15 | . . . . . . . . . . . . . . . . . . 8 6 1 . . . . . Crushed 2 | . 1 . . . . . . . . . 1 . . . . . . . . . . . . . . Highest Temperature 694 | . 350 102 333 . . . 172 29 . 232 250 . 62 216 318 245 694 175 209 . 167 . 342 . 651 Average Temperature 93 | . 120 32 118 . . . 30 9 . 99 100 . 32 74 104 89 127 50 77 . 40 . 109 . 156 Received Heat Transfer 3690 | . 222 87 171 . . 45 333 153 27 312 9 . . 9 555 63 648 228 72 121 396 . 154 . 85 Effects 15 | . 4 . . . . . . . . . . . . . . . 2 . . . . . . . 9 Shutdowns 3 | . . . . . . . . . . . . . . . . . . . . . . . . . 3 Energy Bleed 2 | . 1 . . . . . . . . . . . . . . . . . . . . . . . 1 Interference 2 | . 1 . . . . . . . . . . . . . . . . . . . . . . . 1 Matter Decay 1 | . 1 . . . . . . . . . . . . . . . . . . . . . . . . Damage (minor) 3 | . 1 . . . . . . . . . . . . . . . 1 . . . . . . . 1 Damage (major) 2 | . . . . . . . . . . . . . . . . . . . . . . . . . 2 Damage (core) 2 | . . . . . . . . . . . . . . . . . 1 . . . . . . . 1 Siege Activations 13 | . . . . . . . . . . . . . . . 4 4 2 . . . 1 . . . 2 Total Turns 263 | . . . . . . . . . . . . . . . 82 87 32 . . . 29 . . . 33 Longest Duration 52 | . . . . . . . . . . . . . . . 52 50 22 . . . 29 . . . 23 Robots Corrupted 8 | . . . . . . . . 1 . . . . . . . . . . 7 . . . . . . Combat Hostiles 8 | . . . . . . . . 1 . . . . . . . . . . 7 . . . . . . Parts Fried 53 | . . . . 5 . . 2 2 . 8 . . . . 9 . . 16 11 . . . . . . Impact Corruptions 71 | . . . . 11 . . 6 8 . 8 1 . 1 1 10 . . 21 3 . . . 1 . . Robots Melted 3 | . . 1 . . . . . . . . . . . . . . . . . . 2 . . . . Combat Hostiles 3 | . . 1 . . . . . . . . . . . . . . . . . . 2 . . . . Parts Melted 48 | . 1 3 8 . . 1 . 2 . . . . . . 2 . 2 6 . . 19 . 2 . 2 Heat Transferred 17198 | . 444 777 1369 . . . . 150 . 814 . . 814 50 1665 . 1414 1800 50 . 4747 . 1143 . 1961 Parts Sabotaged 16 | . . . . . . . . . . . . . . . . . 16 . . . . . . . . Parts Stolen . | . . . . . . . . . . . . . . . . . . . . . . . . . . Parts Stripped . | . . . . . . . . . . . . . . . . . . . . . . . . . . Power Chain Reactions 2 | . . . . . . . . 1 . . . . . . . . . . 1 . . . . . . Missiles Intercepted . | . . . . . . . . . . . . . . . . . . . . . . . . . . Alert | -11 -10 -10 -9 -9 -9 -8 -8 -8 -8 -8 -8 -6 -6 -6 -6 -5 -5 -5 -5 -4 -4 -4 -4 -4 -4 ------- Run | Scr Mat Min Mat Min Exi Min Mat Gar Sto Gar Rec Fac Was Fac Gar Fac Gar Fac Gar Fac Gar Fac Gar Fac Gar Peak Influence 1206 | . 60 78 273 81 . 279 645 730 375 1160 722 1206 309 215 584 275 365 289 416 193 512 270 266 130 229 Initial 1194 | . . 23 1 73 . . 14 130 355 178 522 1194 299 76 30 264 186 122 123 155 135 268 189 130 91 Average 282 | . 24 46 125 30 . 68 296 517 328 740 601 1181 303 101 288 107 310 161 271 167 317 269 217 130 125 Maximum Alert Level 4 | . . . 1 . . 1 2 3 1 4 3 4 1 1 2 1 1 1 2 . 2 1 1 . 1 Low Security (%) 49 | 100 100 100 76 100 . 89 22 5 . 2 . . 2 94 26 82 7 74 33 100 21 . 34 100 74 Level 1 28 | . . . 23 . . 10 51 21 100 16 . . 97 5 54 17 92 25 53 . 64 100 65 . 25 Level 2 13 | . . . . . . . 26 66 . 26 87 . . . 18 . . . 13 . 14 . . . . Level 3 5 | . . . . . . . . 5 . 40 12 12 . . . . . . . . . . . . . Level 4 3 | . . . . . . . . . . 14 . 87 . . . . . . . . . . . . . Level 5 . | . . . . . . . . . . . . . . . . . . . . . . . . . . High Security . | . . . . . . . . . . . . . . . . . . . . . . . . . . Max Security . | . . . . . . . . . . . . . . . . . . . . . . . . . . Squads Dispatched 32 | . 1 . 1 1 . . 7 . 1 . . . . 1 . 6 . 8 . 5 . 1 . . . Investigation 9 | . . . . 1 . . 2 . . . . . . . . 1 . 2 . 2 . 1 . . . Extermination 4 | . . . . . . . . . . . . . . 1 . 1 . 2 . . . . . . . Reinforcement 17 | . 1 . 1 . . . 4 . . . . . . . . 4 . 4 . 3 . . . . . Assault . | . . . . . . . . . . . . . . . . . . . . . . . . . . Garrison 2 | . . . . . . . 1 . 1 . . . . . . . . . . . . . . . . Intercept . | . . . . . . . . . . . . . . . . . . . . . . . . . . Searches Triggered 1 | . . . . . . . . . . . . 1 . . . . . . . . . . . . . Construction Impeded 5 | . . . . . . . 2 . . . . . . . . 1 . 2 . . . . . . . Haulers Reinforced 1 | . . . . . . . . . . . . . . . . 1 . . . . . . . . . Active Scanning Responses . | . . . . . . . . . . . . . . . . . . . . . . . . . . Cargo Convoy Interrupts . | . . . . . . . . . . . . . . . . . . . . . . . . . . Stealth | -11 -10 -10 -9 -9 -9 -8 -8 -8 -8 -8 -8 -6 -6 -6 -6 -5 -5 -5 -5 -4 -4 -4 -4 -4 -4 --------- Run | Scr Mat Min Mat Min Exi Min Mat Gar Sto Gar Rec Fac Was Fac Gar Fac Gar Fac Gar Fac Gar Fac Gar Fac Gar Distress Signals 10 | . . . . . . . 3 . . . . . . . . . . 6 . 1 . . . . . Communications Jammed . | . . . . . . . . . . . . . . . . . . . . . . . . . . Distress Signals . | . . . . . . . . . . . . . . . . . . . . . . . . . . Times Spotted 389 | . 4 4 22 . . 7 33 25 2 30 22 1 . 11 43 25 38 31 14 21 29 . 20 . 7 Peak Tracking Total 14 | . 2 2 4 . . 7 5 6 2 5 3 1 . 4 5 5 14 5 3 12 7 . 11 . 4 Tactical Retreats 14 | . . . . . . . 1 . . 3 . . . . 2 2 1 1 . 2 . . 2 . . Traps | -11 -10 -10 -9 -9 -9 -8 -8 -8 -8 -8 -8 -6 -6 -6 -6 -5 -5 -5 -5 -4 -4 -4 -4 -4 -4 ------- Run | Scr Mat Min Mat Min Exi Min Mat Gar Sto Gar Rec Fac Was Fac Gar Fac Gar Fac Gar Fac Gar Fac Gar Fac Gar Traps Triggered 26 | . . . . . . . 2 2 . 4 . 1 . . 5 . 5 2 2 . 2 . . . 1 Indirectly 2 | . . . . . . . . 2 . . . . . . . . . . . . . . . . . Trap Hack Attempts 1 | . . . . . . . . 1 . . . . . . . . . . . . . . . . . Triggered . | . . . . . . . . . . . . . . . . . . . . . . . . . . Disarmed 1 | . . . . . . . . 1 . . . . . . . . . . . . . . . . . Reprogrammed . | . . . . . . . . . . . . . . . . . . . . . . . . . . Reused 4 | . . . . . . . . . . . . . . . . 4 . . . . . . . . . Traps Reconfigurated 23 | . . . . . . . . 10 . . . 4 . . 4 5 . . . . . . . . . Traps Extracted . | . . . . . . . . . . . . . . . . . . . . . . . . . . Installed . | . . . . . . . . . . . . . . . . . . . . . . . . . . Triggered 4 | . . . . . . . . . . . . . . . . 4 . . . . . . . . . Machines | -11 -10 -10 -9 -9 -9 -8 -8 -8 -8 -8 -8 -6 -6 -6 -6 -5 -5 -5 -5 -4 -4 -4 -4 -4 -4 ---------- Run | Scr Mat Min Mat Min Exi Min Mat Gar Sto Gar Rec Fac Was Fac Gar Fac Gar Fac Gar Fac Gar Fac Gar Fac Gar Machines Disabled 36 | . . . . . . . . 2 . 6 10 . . 2 5 1 1 5 2 . 1 . . . 1 Max in Single Turn 2 | . . . . . . . . 1 . 1 2 . . 1 1 1 1 1 1 . 1 . . . 1 Garrison Access 1 | . . . . . . . . . . . . . . . . . . . . . . 1 . . . Garrison Relay 12 | . . . . . . . . 2 . 6 . . . . 2 . . . 1 . 1 . . . . Machines Sabotaged . | . . . . . . . . . . . . . . . . . . . . . . . . . . Garrisons Compromised . | . . . . . . . . . . . . . . . . . . . . . . . . . . Overloaded Fab Kills . | . . . . . . . . . . . . . . . . . . . . . . . . . . Hacking | -11 -10 -10 -9 -9 -9 -8 -8 -8 -8 -8 -8 -6 -6 -6 -6 -5 -5 -5 -5 -4 -4 -4 -4 -4 -4 --------- Run | Scr Mat Min Mat Min Exi Min Mat Gar Sto Gar Rec Fac Was Fac Gar Fac Gar Fac Gar Fac Gar Fac Gar Fac Gar Machines Accessed 65 | . 1 1 5 1 2 . 10 2 3 3 5 2 . 3 1 9 1 8 1 3 1 2 . 1 . Terminals 47 | . 1 1 5 . . . 8 2 2 3 5 2 . 2 1 5 1 5 1 2 1 . . . . Fabricators 3 | . . . . . . . . . . . . . . . . 1 . 2 . . . . . . . Repair Stations 3 | . . . . . . . 1 . . . . . . . . 2 . . . . . . . . . Recycling Units . | . . . . . . . . . . . . . . . . . . . . . . . . . . Scanalyzers . | . . . . . . . . . . . . . . . . . . . . . . . . . . Garrison Access 9 | . . . . . . . 1 . 1 . . . . 1 . 1 . 1 . 1 . 2 . 1 . Total Hacks 167 | . 2 2 18 1 2 . 34 5 5 7 12 6 . 7 1 32 2 17 2 6 1 4 . 1 . Successful 92 | . 1 1 7 1 2 . 20 2 3 2 4 1 . 4 1 27 1 8 1 2 1 2 . 1 . Failed 73 | . 1 1 10 . . . 13 3 2 5 8 5 . 3 . 5 1 9 1 4 . 2 . . . Catastrophic 16 | . . 1 . . . . 2 1 . 1 2 1 . 2 . . . 3 . 2 . 1 . . . Database Lockouts 2 | . . . 1 . . . 1 . . . . . . . . . . . . . . . . . . Manual 91 | . 2 3 14 . 1 . 25 . 4 . 7 5 . 1 . 16 . 9 . 2 . 2 . . . Terminals 127 | . 2 2 18 . . . 30 5 4 7 12 6 . 5 1 19 2 8 2 3 1 . . . . Fabricators 8 | . . . . . . . . . . . . . . . . 4 . 4 . . . . . . . Repair Stations 7 | . . . . . . . 2 . . . . . . . . 5 . . . . . . . . . Recycling Units . | . . . . . . . . . . . . . . . . . . . . . . . . . . Scanalyzers . | . . . . . . . . . . . . . . . . . . . . . . . . . . Garrison Access 22 | . . . . . . . 2 . 1 . . . . 2 . 4 . 5 . 3 . 4 . 1 . Terminal Hacks 46 | . 1 1 4 1 2 . 10 2 . 2 2 . . 3 1 10 1 3 1 1 1 . . . . Record 1 | . . . . . 1 . . . . . . . . . . . . . . . . . . . . Part Schematic 2 | . . . 1 . . . . . . . . . . 1 . . . . . . . . . . . Robot Schematic 3 | . . . . . . . . . . . . . . . . 3 . . . . . . . . . Robot Analysis 7 | . 1 1 1 . . . 2 . . . . . . . . 1 . 1 . . . . . . . Prototype ID Bank 2 | . . . . . . . . . . . . . . 1 . 1 . . . . . . . . . Open Door 1 | . . . . 1 . . . . . . . . . . . . . . . . . . . . . Open DSF 1 | . . . . . . . . . . . . . . . . . . 1 . . . . . . . Emergency Access Points 6 | . . . . . . . . 1 . 1 . . . . 1 . 1 . 1 . 1 . . . . Machine Index 2 | . . . . . . . . . . . . . . . . 2 . . . . . . . . . Terminal Index 3 | . . . 1 . . . . . . . . . . 1 . 1 . . . . . . . . . Repair Station Index 1 | . . . . . . . . . . . . . . . . 1 . . . . . . . . . Garrison Index 2 | . . . . . . . 1 . . . 1 . . . . . . . . . . . . . . Unreport Threat 7 | . . . 1 . . . 3 . . . 1 . . . . 1 . 1 . . . . . . . Locate Traps 2 | . . . . . . . 2 . . . . . . . . . . . . . . . . . . Hauler Manifests 1 | . . . . . . . . . . . . . . . . . . . . 1 . . . . . Zone Layout 2 | . . . . . . . 2 . . . . . . . . . . . . . . . . . . Garrison Registry 1 | . . . . . . . . 1 . . . . . . . . . . . . . . . . . Patrol Navigation 1 | . . . . . . . . . . 1 . . . . . . . . . . . . . . . EX-Prototype ID Bank 1 | . . . . . 1 . . . . . . . . . . . . . . . . . . . . Fabricator Hacks 5 | . . . . . . . . . . . . . . . . 3 . 2 . . . . . . . Load Schematic 2 | . . . . . . . . . . . . . . . . 1 . 1 . . . . . . . Build 3 | . . . . . . . . . . . . . . . . 2 . 1 . . . . . . . Repair Station Hacks 7 | . . . . . . . 2 . . . . . . . . 5 . . . . . . . . . Scan Component 3 | . . . . . . . 1 . . . . . . . . 2 . . . . . . . . . Repair 3 | . . . . . . . 1 . . . . . . . . 2 . . . . . . . . . Refit 1 | . . . . . . . . . . . . . . . . 1 . . . . . . . . . Recycling Unit Hacks . | . . . . . . . . . . . . . . . . . . . . . . . . . . Scanalyzer . | . . . . . . . . . . . . . . . . . . . . . . . . . . Garrison Access Hacks 10 | . . . . . . . 1 . 1 . . . . 1 . 2 . 1 . 1 . 2 . 1 . Unlock Access 8 | . . . . . . . 1 . 1 . . . . 1 . 1 . 1 . 1 . 1 . 1 . Seal Access 1 | . . . . . . . . . . . . . . . . . . . . . . 1 . . . Coupler Status 1 | . . . . . . . . . . . . . . . . 1 . . . . . . . . . Unauthorized Hacks 24 | . . . 3 . . . 7 . 2 . 2 1 . . . 7 . 2 . . . . . . . Terminals 20 | . . . 3 . . . 6 . 2 . 2 1 . . . 4 . 2 . . . . . . . Assimilate 2 | . . . . . . . . . . . . . . . . 1 . 1 . . . . . . . Botnet 17 | . . . 3 . . . 5 . 2 . 2 1 . . . 3 . 1 . . . . . . . Disrupt 1 | . . . . . . . 1 . . . . . . . . . . . . . . . . . . Fabricators 1 | . . . . . . . . . . . . . . . . 1 . . . . . . . . . Prioritize 1 | . . . . . . . . . . . . . . . . 1 . . . . . . . . . Repair Stations . | . . . . . . . . . . . . . . . . . . . . . . . . . . Recycling Units . | . . . . . . . . . . . . . . . . . . . . . . . . . . Scanalyzers . | . . . . . . . . . . . . . . . . . . . . . . . . . . Garrison Access 3 | . . . . . . . 1 . . . . . . . . 2 . . . . . . . . . Reprogram 2 | . . . . . . . 1 . . . . . . . . 1 . . . . . . . . . Eject 1 | . . . . . . . . . . . . . . . . 1 . . . . . . . . . Data Cores Recovered . | . . . . . . . . . . . . . . . . . . . . . . . . . . Used . | . . . . . . . . . . . . . . . . . . . . . . . . . . Hacking Detections 51 | . 1 1 5 . . . 10 1 2 2 5 2 . 3 . 7 1 6 . 3 1 1 . . . Full Trace Events 8 | . . . . . . . 1 1 . 1 . . . . . . . 2 . 2 . 1 . . . Feedback Events 2 | . . . . . . . . . . . . . . . . . . . . 1 . 1 . . . Corruption 2 | . . . . . . . . . . . . . . . . . . . . 1 . 1 . . . Feedback Blocked . | . . . . . . . . . . . . . . . . . . . . . . . . . . Robot Schematics Acquired 3 | . . . . . . . . . . . . . . . . 3 . . . . . . . . . Robots Built 4 | . . . . . . . . . . . . . . . . 2 . 2 . . . . . . . Authchips 1 | . . . . . . . . . . . . . . . . 1 . . . . . . . . . Time 253 | . . . . . . . . . . . . . . . . 84 . 169 . . . . . . . Total Robot Build Rating 24 | . . . . . . . . . . . . . . . . 12 . 12 . . . . . . . Part Schematics Acquired 2 | . . . 1 . . . . . . . . . . 1 . . . . . . . . . . . Parts Built 1 | . . . . . . . . . . . . . . . . 1 . . . . . . . . . Authchips . | . . . . . . . . . . . . . . . . . . . . . . . . . . Time 139 | . . . . . . . . . . . . . . . . 139 . . . . . . . . . Total Part Build Rating 9 | . . . . . . . . . . . . . . . . 9 . . . . . . . . . Parts Repaired 3 | . . . . . . . 1 . . . . . . . . 2 . . . . . . . . . Time 92 | . . . . . . . 16 . . . . . . . . 76 . . . . . . . . . Parts Recycled . | . . . . . . . . . . . . . . . . . . . . . . . . . . Recycled Matter . | . . . . . . . . . . . . . . . . . . . . . . . . . . Retrieved Matter . | . . . . . . . . . . . . . . . . . . . . . . . . . . Retrieved Components . | . . . . . . . . . . . . . . . . . . . . . . . . . . Parts Scanalyzed . | . . . . . . . . . . . . . . . . . . . . . . . . . . Part Schematics Acquired . | . . . . . . . . . . . . . . . . . . . . . . . . . . Parts Damaged . | . . . . . . . . . . . . . . . . . . . . . . . . . . Bothacking | -11 -10 -10 -9 -9 -9 -8 -8 -8 -8 -8 -8 -6 -6 -6 -6 -5 -5 -5 -5 -4 -4 -4 -4 -4 -4 ------------ Run | Scr Mat Min Mat Min Exi Min Mat Gar Sto Gar Rec Fac Was Fac Gar Fac Gar Fac Gar Fac Gar Fac Gar Fac Gar Used RIF Installer 6 | . . . . . . . . 2 . 1 . . . . 1 . . . 1 . . . 1 . . Command Fork 1 | . . . . . . . . . . . . . . . . . . . . . . . 1 . . Threat Obfuscator 1 | . . . . . . . . . . 1 . . . . . . . . . . . . . . . Zone Cloak 1 | . . . . . . . . 1 . . . . . . . . . . . . . . . . . Watcher Feeds 1 | . . . . . . . . . . . . . . . 1 . . . . . . . . . . Structural Interface 1 | . . . . . . . . . . . . . . . . . . . 1 . . . . . . Robots Hacked 43 | . . . . . 4 . . 2 1 11 . . . 6 5 8 5 . . 1 . . . . . Non-combat 12 | . . . . . 3 . . . . . . . . 3 . 5 . . . 1 . . . . . Combat 31 | . . . . . 1 . . 2 1 11 . . . 3 5 3 5 . . . . . . . . Robot Hacks Applied 47 | . . . . . 4 . . 2 1 11 . . . 7 5 11 5 . . 1 . . . . . parse_system 6 | . . . . . 4 . . . . . . . . . . 1 1 . . . . . . . . find_chute 1 | . . . . . . . . . . . . . . . . 1 . . . . . . . . . find_fabricator 1 | . . . . . . . . . . . . . . 1 . . . . . . . . . . . drop_inventory 6 | . . . . . . . . . . . . . . 3 . 2 . . . 1 . . . . . ignore_parts 4 | . . . . . . . . . . . . . . . . 4 . . . . . . . . . find_garrison 1 | . . . . . . . . . . . . . . 1 . . . . . . . . . . . amplify_resonance 2 | . . . . . . . . . . . . . . . 1 . 1 . . . . . . . . overwrite_iff 16 | . . . . . . . . 1 1 6 . . . . 4 1 3 . . . . . . . . formatsys_high 10 | . . . . . . . . 1 . 5 . . . 2 . 2 . . . . . . . . . Relay Couplers Released 51 | . . . . . . . . 9 . 22 . . . . 7 4 . . 4 . 5 . . . . Ejected 4 | . . . . . . . . . . . . . . . . 4 . . . . . . . . . Machine Destruction 47 | . . . . . . . . 9 . 22 . . . . 7 . . . 4 . 5 . . . . Attached 24 | . . . . . . . . 1 1 5 . 2 . 1 3 4 5 . 2 . . . . . . Fabnet Peak Effective % . | . . . . . . . . . . . . . . . . . . . . . . . . . . Robots Rewired 21 | . . . . . . . . 3 . . 8 . . . 6 . 3 . . . 1 . . . . Allies Hacked 1 | . . . . . . . . . . . . . . . . . 1 . . . . . . . . Hacks Repelled . | . . . . . . . . . . . . . . . . . . . . . . . . . . Allies | -11 -10 -10 -9 -9 -9 -8 -8 -8 -8 -8 -8 -6 -6 -6 -6 -5 -5 -5 -5 -4 -4 -4 -4 -4 -4 -------- Run | Scr Mat Min Mat Min Exi Min Mat Gar Sto Gar Rec Fac Was Fac Gar Fac Gar Fac Gar Fac Gar Fac Gar Fac Gar Total Allies 60 | . . . . 3 . . 3 5 1 11 8 . 1 2 10 6 7 2 . . 1 . . . . Largest Group 8 | . . . . 3 3 3 3 3 4 5 8 7 1 2 6 3 2 3 . . 1 . . . . Highest-Rated Group 192 | . . . . 40 40 40 48 48 88 76 124 108 16 76 192 115 108 120 . . 116 . . . . Highest-Rated Ally 116 | . . . . 16 16 16 16 24 24 29 34 34 16 47 32 54 54 54 . . 116 . . . . Total Orders 5 | . . . . . . . . . . 1 . . . 2 . 2 . . . . . . . . . STAY 3 | . . . . . . . . . . 1 . . . 1 . 1 . . . . . . . . . FOLLOW 2 | . . . . . . . . . . . . . . 1 . 1 . . . . . . . . . Ally Attacks 258 | . . . . . . 32 2 32 8 25 20 . . 23 44 15 26 27 . . 4 . . . . Total Damage 5778 | . . . . . . 264 29 404 150 535 455 . . 348 1632 449 473 709 . . 330 . . . . Kills 50 | . . . . . . 4 1 7 . 2 7 . . 3 11 3 7 4 . . 1 . . . . Allies Corrupted 2 | . . . . . . . . . . 1 . . . . 1 . . . . . . . . . . Allies Melted 1 | . . . . . . . . . . . . . . . . 1 . . . . . . . . . Intel | -11 -10 -10 -9 -9 -9 -8 -8 -8 -8 -8 -8 -6 -6 -6 -6 -5 -5 -5 -5 -4 -4 -4 -4 -4 -4 ------- Run | Scr Mat Min Mat Min Exi Min Mat Gar Sto Gar Rec Fac Was Fac Gar Fac Gar Fac Gar Fac Gar Fac Gar Fac Gar Robot Analysis Total 7 | . 1 1 1 . . . 2 . . . . . . . . 1 . 1 . . . . . . . Derelict Logs Recovered 2 | . . 1 . 1 . . . . . . . . . . . . . . . . . . . . . Drone Launches . | . . . . . . . . . . . . . . . . . . . . . . . . . . Drone Recoveries . | . . . . . . . . . . . . . . . . . . . . . . . . . . Exploration | -11 -10 -10 -9 -9 -9 -8 -8 -8 -8 -8 -8 -6 -6 -6 -6 -5 -5 -5 -5 -4 -4 -4 -4 -4 -4 ------------- Run | Scr Mat Min Mat Min Exi Min Mat Gar Sto Gar Rec Fac Was Fac Gar Fac Gar Fac Gar Fac Gar Fac Gar Fac Gar Turns Passed 18424 | 72 304 1189 788 1092 407 645 1120 791 99 1752 737 402 409 875 1396 1882 778 1255 554 241 881 106 222 25 402 Spaces Moved 9994 | 41 132 692 344 643 249 377 484 339 46 847 350 229 158 494 538 788 314 932 360 444 547 49 325 25 247 Core 524 | 4 . . . . . . . . . . . . . . . . 12 . 20 301 22 . 7 23 135 Treads 7212 | 37 132 692 344 643 249 377 484 339 46 847 350 229 158 494 538 788 246 . . . 107 . . . 112 Legs 1011 | . . . . . . . . . . . . . . . . . 4 578 340 3 86 . . . . Wheels . | . . . . . . . . . . . . . . . . . . . . . . . . . . Hover 578 | . . . . . . . . . . . . . . . . . . . . . 209 49 318 2 . Flight 669 | . . . . . . . . . . . . . . . . . 52 354 . 140 123 . . . . Fastest Speed 29 | 50 160 160 160 160 160 160 160 165 170 165 163 162 160 160 160 160 29 29 50 35 35 40 40 52 100 Average Speed 138 | 149 160 160 160 164 160 160 161 167 170 166 163 162 160 160 160 160 155 87 108 45 96 47 42 96 123 Slowest Speed 500 | 160 160 160 160 240 160 160 165 170 170 170 165 163 162 160 240 240 270 260 120 90 500 48 100 100 152 Overloaded Moves . | . . . . . . . . . . . . . . . . . . . . . . . . . . Propulsion Burnouts . | . . . . . . . . . . . . . . . . . . . . . . . . . . Robots Hopped 6 | . . . . . . . . . . . . . . . . . . . . 2 4 . . . . Cave-ins Triggered . | . . . . . . . . . . . . . . . . . . . . . . . . . . Exploration Rate (%) 46 | 4 27 99 33 98 65 88 52 55 12 90 88 9 86 24 67 25 39 25 43 22 67 5 49 1 30 Regions Visited 25 Branch Regions 6 Pre-discovered Areas 2 | . . . . 1 1 . . . . . . . . . . . . . . . . . . . . Known Exits Taken 10 | . . . 1 . . 1 1 . 1 . . . . 1 . 1 . 1 . 1 . 1 . 1 . Unknown Exits Taken 6 | 1 1 1 . 1 1 . . . . . 1 . . . . . . . . . . . . . . Scrap Searched 3 | . . 1 . 1 . 1 . . . . . . . . . . . . . . . . . . . Spaces Dug 69 | . . . . 2 . . 11 1 . . 30 . . 2 5 6 . 8 1 . . 1 2 . . Terrain Destroyed 448 | . . . . 2 . 34 73 3 . 2 153 . 12 52 18 46 8 20 7 . 4 1 6 . 7 Melee 21 | . . . . 2 . . 6 1 . . . . . . 5 5 . 1 1 . . . . . . Projectile 90 | . . . . . . 1 16 . . 1 1 . . 2 13 11 8 19 . . 4 1 6 . 7 AOE 337 | . . . . . . 33 51 2 . 1 152 . 12 50 . 30 . . 6 . . . . . . Terrain Rammed . | . . . . . . . . . . . . . . . . . . . . . . . . . . Walls Destroyed . | . . . . . . . . . . . . . . . . . . . . . . . . . . Machines Disabled . | . . . . . . . . . . . . . . . . . . . . . . . . . . Actions | -11 -10 -10 -9 -9 -9 -8 -8 -8 -8 -8 -8 -6 -6 -6 -6 -5 -5 -5 -5 -4 -4 -4 -4 -4 -4 --------- Run | Scr Mat Min Mat Min Exi Min Mat Gar Sto Gar Rec Fac Was Fac Gar Fac Gar Fac Gar Fac Gar Fac Gar Fac Gar Total 13035 | 49 180 745 472 662 255 414 683 454 54 1058 483 257 276 560 855 1346 491 1245 443 475 752 129 377 25 295 Wait 1294 | . 6 11 22 5 . 27 93 30 . 48 32 13 45 35 84 442 39 158 18 13 61 77 24 . 11 Move 9961 | 40 131 691 343 642 248 376 483 338 46 845 349 229 157 493 537 787 313 932 358 440 540 49 323 24 247 Hop 4 | . . . . . . . . . . . . . . . . . . . . 2 2 . . . . Pick Up 141 | 3 5 6 22 1 1 1 3 4 . 15 2 5 6 2 14 25 8 9 . 3 5 . . . 1 Fast Attach 160 | 6 4 5 4 2 . . 4 . . 11 2 2 1 . 12 8 11 30 4 11 31 2 1 . 9 Attach 79 | . 1 1 1 . 1 . 3 4 . 8 . 4 . 1 11 10 15 6 3 2 5 . 1 . 2 Detach 35 | . 1 1 . . . . 1 . . 4 . . . . 6 1 4 5 3 1 5 . . 1 2 Swap 109 | . . 2 8 1 1 2 14 13 2 15 1 2 4 9 12 10 6 5 . . 1 . 1 . . Drop 143 | . 2 10 15 4 . 2 9 4 . 15 2 2 6 1 13 15 3 21 1 1 14 . 3 . . Fire 678 | . 24 17 57 . . 5 47 28 5 54 22 . 20 14 99 39 59 46 27 1 75 1 15 . 23 Melee 186 | . . . . 7 4 . 21 31 1 42 . . . . 37 5 . 25 13 . . . . . . Ram 9 | . . . . . . . . . . . . . . . . . . . . . . . 9 . . Kick 15 | . . . . . . . . . . . . . . . . . . 8 6 1 . . . . . Crush 70 | . 6 1 . . . 1 5 . . . 11 . 37 5 . 4 . . . . . . . . . Escape Stasis 37 | . . . . . . . . . . . . . . . . . 17 . 10 . 10 . . . . Rewire 113 | . . . . . . . . 1 . 1 62 . . . 30 . 16 . . . 3 . . . . Trap 1 | . . . . . . . . 1 . . . . . . . . . . . . . . . . . Miscellaneous . | . . . . . . . . . . . . . . . . . . . . . . . . . . Route ------- -11/Scrapyard -10/Materials -10/Mines (discovered 2 exits: *Mat x2) -9/Materials (discovered 3 exits: Mat / *Min x2) -9/Mines (discovered 3 exits: *Mat x2 / *Exi) -9/Exiles (discovered 2 exits: [*Min x2]) -8/Mines -8/Materials (discovered 2 exits: [*Fac] / Gar) -8/Garrison (discovered 4 exits: *Sto x4) -8/Storage -8/Garrison (discovered 3 exits: *Rec x3) -8/Recycling -6/Factory -6/Waste -6/Factory (discovered 2 exits: *Fac / Gar) -6/Garrison (discovered 2 exits: *Fac x2) -5/Factory (discovered 3 exits: *Fac / [*Ext] / Gar) -5/Garrison (discovered 2 exits: *Fac / *Fac) -5/Factory (discovered 2 exits: *Fac / Gar) -5/Garrison -4/Factory -4/Garrison (discovered 2 exits: [*Res] / *Fac) -4/Factory (discovered 2 exits: [*Res] / Gar) -4/Garrison -4/Factory -4/Garrison History --------- Turn | Location | Event 7 | -11/Scrapyard | Discovered new exit (range 14) 73 | -11/Scrapyard | Entered Materials 225 | -10/Materials | Discovered new exit (range 11) 337 | -10/Materials | Build established: Mutant 377 | -10/Materials | Entered Mines 392 | -10/Mines | Met a Derelict bent on vengeance 447 | -10/Mines | Learned 8 Materials zone layouts 698 | -10/Mines | Found a damaged Exp. Sensor Array with a note attached 702 | -10/Mines | Found Prototype Device 702 | -10/Mines | Identified Exp. Sensor Array 1138 | -10/Mines | Build established: Scavenger-Mutant 1166 | -10/Mines | Discovered new exit (range 6) 1326 | -10/Mines | Discovered new exit (range 6) 1566 | -10/Mines | Entered Materials 1566 | -9/Materials | Evolved 2 slots: Propulsion x1, Utility x1 1567 | -9/Materials | Identified exit to Mines 1567 | -9/Materials | Identified exit to Materials 2028 | -9/Materials | Build established: Mutant 2268 | -9/Materials | Central database locked down 2354 | -9/Materials | Entered Mines 2399 | -9/Mines | Met a Derelict shopkeep closing up shop 2500 | -9/Mines | Assembled infested the area 2554 | -9/Mines | Learned location of Zion (-6) 2562 | -9/Mines | Met 8R-AWN 2600 | -9/Mines | Discovered new exit (range 5) 2761 | -9/Mines | Received a Rocket Launcher from a helpful Derelict 2787 | -9/Mines | Discovered exit to Materials (range 9) 2938 | -9/Mines | Discovered exit to Materials (range 8) 3219 | -9/Mines | Assisted by bots powering up and referring to "LRC-V3" 3446 | -9/Mines | Entered Exiles 3446 | -9/Exiles | Accompanied by 3 allies 3467 | -9/Exiles | Discovered new exit (range 15) 3490 | -9/Exiles | Welcomed by 8R-AWN 3515 | -9/Exiles | Met EX-HEX 3561 | -9/Exiles | Met EX-BIN 3579 | -9/Exiles | Aligned with FarCom system 3581 | -9/Exiles | Given EX-Vault access code 3627 | -9/Exiles | Opened EX-Vault 3641 | -9/Exiles | Found Trap Reconfigurator 3675 | -9/Exiles | Warned to stay clear of 0b10 Research branches 3723 | -9/Exiles | Met EX-DEC 3840 | -9/Exiles | Discovered new exit (range 10) 3853 | -9/Exiles | Left Exiles lab with Trap Reconfigurator 3853 | -9/Exiles | Entered Mines 3853 | -8/Mines | Accompanied by 3 allies 4237 | -8/Mines | Discovered exit to Materials (range 7) 4498 | -8/Mines | Entered Materials 4498 | -8/Materials | Evolved 2 slots: Propulsion x1, Weapon x1 4539 | -8/Materials | Repaired Mni. Grenade Launcher 4714 | -8/Materials | Discovered new exit (range 8) 5401 | -8/Materials | Central database locked down 5430 | -8/Materials | Garrison activated, responded to threat 5603 | -8/Materials | Identified exit to Garrison 5618 | -8/Materials | Entered Garrison 5618 | -8/Garrison | Accompanied by 3 allies 5639 | -8/Garrison | Triggered checkpoint 5673 | -8/Garrison | Garrison Relay disabled 5715 | -8/Garrison | Discovered new exit (range 56) 5715 | -8/Garrison | Discovered new exit (range 79) 5715 | -8/Garrison | Discovered new exit (range 77) 5715 | -8/Garrison | Discovered new exit (range 34) 5808 | -8/Garrison | Triggered checkpoint 5820 | -8/Garrison | Triggered checkpoint 5860 | -8/Garrison | Triggered checkpoint 6007 | -8/Garrison | Installed Relay Interface Framework 6042 | -8/Garrison | Garrison Relay disabled 6082 | -8/Garrison | Expanded RIF knowledge: Zone Cloak 6344 | -8/Garrison | Triggered checkpoint 6409 | -8/Garrison | Entered Storage 6409 | -8/Storage | Accompanied by 4 allies 6465 | -8/Storage | Garrison activated, responded to threat 6508 | -8/Storage | Identified exit to Garrison 6508 | -8/Storage | Entered Garrison 6528 | -8/Garrison | Triggered checkpoint 6636 | -8/Garrison | Triggered checkpoint 6658 | -8/Garrison | Garrison Relay disabled 6826 | -8/Garrison | Triggered checkpoint 6830 | -8/Garrison | Triggered checkpoint 6838 | -8/Garrison | Build established: Bothacker-Mutant 6858 | -8/Garrison | Destroyed 8 combat bots 6925 | -8/Garrison | Discovered new exit (range 13) 7130 | -8/Garrison | Garrison Relay disabled 7224 | -8/Garrison | Discovered new exit (range 12) 7264 | -8/Garrison | Triggered checkpoint 7294 | -8/Garrison | Garrison Relay disabled 7472 | -8/Garrison | Triggered checkpoint 7606 | -8/Garrison | Discovered new exit (range 10) 7718 | -8/Garrison | Garrison Relay disabled 7736 | -8/Garrison | Triggered checkpoint 7780 | -8/Garrison | Spotted B-75 Beast 7784 | -8/Garrison | System corruption reached 10% 7818 | -8/Garrison | Core integrity fell below 50% 7844 | -8/Garrison | Destroyed B-75 Beast 7881 | -8/Garrison | Garrison Relay disabled 8058 | -8/Garrison | Triggered checkpoint 8100 | -8/Garrison | Expanded RIF knowledge: Threat Obfuscation 8151 | -8/Garrison | Garrison Relay disabled 8260 | -8/Garrison | Entered Recycling 8318 | -8/Recycling | Spotter reported a threat 8319 | -8/Recycling | Spotter reported a threat 8332 | -8/Recycling | Spotter reported a threat 8387 | -8/Recycling | Spotter reported a threat 8443 | -8/Recycling | Spotter reported a threat 8458 | -8/Recycling | Spotter reported a threat 8534 | -8/Recycling | Spotter reported a threat 8611 | -8/Recycling | Spotter reported a threat 8615 | -8/Recycling | Spotter reported a threat 8690 | -8/Recycling | Spotter reported a threat 8712 | -8/Recycling | Spotter reported a threat 8814 | -8/Recycling | Spotter reported a threat 8908 | -8/Recycling | Spotter reported a threat 8932 | -8/Recycling | Spotter reported a threat 8932 | -8/Recycling | Spotter reported a threat 8951 | -8/Recycling | Spotter reported a threat 8952 | -8/Recycling | Spotter reported a threat 8966 | -8/Recycling | Discovered new exit (range 16) 8977 | -8/Recycling | Spotter reported a threat 8977 | -8/Recycling | Spotter reported a threat 8997 | -8/Recycling | Entered Factory 8997 | -6/Factory | Accompanied by 7 allies 8997 | -6/Factory | Evolved 4 slots: Utility x4 9051 | -6/Factory | Discovered new exit (range 15) 9347 | -6/Factory | Search patrols dispatched 9380 | -6/Factory | System corruption reached 10% 9399 | -6/Factory | Manually triggered Chute Trap 9399 | -6/Factory | Sucked down chute 9399 | -6/Factory | Entered Waste 9399 | -6/Waste | The area was eerily silent 9399 | -6/Waste | Met up with 1 ally sucked down the chute earlier 9740 | -6/Waste | Discovered new exit (range 11) 9808 | -6/Waste | Entered Factory 9808 | -6/Factory | Accompanied by 1 ally 10417 | -6/Factory | Discovered new exit (range 22) 10673 | -6/Factory | Identified exit to Garrison 10683 | -6/Factory | Entered Garrison 10829 | -6/Garrison | Garrison Relay disabled 10980 | -6/Garrison | Triggered checkpoint 10986 | -6/Garrison | Triggered checkpoint 11049 | -6/Garrison | Triggered checkpoint 11538 | -6/Garrison | Triggered checkpoint 11611 | -6/Garrison | Discovered new exit (range 7) 11656 | -6/Garrison | Triggered checkpoint 11730 | -6/Garrison | Garrison Relay disabled 11816 | -6/Garrison | Triggered checkpoint 11877 | -6/Garrison | Triggered checkpoint 11938 | -6/Garrison | Expanded RIF knowledge: Watcher Feeds 11982 | -6/Garrison | Discovered new exit (range 15) 12021 | -6/Garrison | Spotted B-75 Beast 12032 | -6/Garrison | Found Unknown Hackware 12032 | -6/Garrison | Identified Relay Coupler [Proto] 12067 | -6/Garrison | System corruption reached 30% 12079 | -6/Garrison | Entered Factory 12079 | -5/Factory | Evolved 2 slots: Power x1, Utility x1 12096 | -5/Factory | Lost 8 parts (1p2n4u1w) 12331 | -5/Factory | Build established: Botlord-Mutant 12452 | -5/Factory | Repaired Imp. Heavy Treads 12764 | -5/Factory | Discovered new exit (range 16) 12769 | -5/Factory | Discovered new exit (range 13) 12908 | -5/Factory | Repaired Remote Datajack 12986 | -5/Factory | Build established: Bothacker-Mutant 13653 | -5/Factory | Found Tesla Bomb Launcher 13657 | -5/Factory | Found Tesla Bomb Launcher 13790 | -5/Factory | Fabricated Enh. Nova Cannon (x1) 13880 | -5/Factory | Fabricated P-70 Sage (x2) 13953 | -5/Factory | Identified exit to Garrison 13961 | -5/Factory | Entered Garrison 13961 | -5/Garrison | Accompanied by 2 allies 14062 | -5/Garrison | Triggered checkpoint 14062 | -5/Garrison | Triggered checkpoint 14222 | -5/Garrison | Discovered new exit (range 10) 14337 | -5/Garrison | Lost 4 parts (1p1n1u1w) 14358 | -5/Garrison | Found Relay Coupler [Proto] 14361 | -5/Garrison | Found Relay Coupler [Proto] 14363 | -5/Garrison | Found Relay Coupler [Proto] 14366 | -5/Garrison | Found Relay Coupler [Proto] 14426 | -5/Garrison | Triggered checkpoint 14481 | -5/Garrison | Lost 6 parts (2n2u2w) 14500 | -5/Garrison | Discovered new exit (range 3) 14624 | -5/Garrison | Triggered checkpoint 14693 | -5/Garrison | Core integrity fell below 50% 14732 | -5/Garrison | Lost 16 parts (1p3n8u4w) 14739 | -5/Garrison | Entered Factory 14739 | -5/Factory | Accompanied by 3 allies 15020 | -5/Factory | Fabricated P-70 Sage (x2) 15129 | -5/Factory | Build established: Mutant 15826 | -5/Factory | Discovered new exit (range 5) 15994 | -5/Factory | Identified exit to Garrison 15994 | -5/Factory | Entered Garrison 16095 | -5/Garrison | Build established: Scavenger-Mutant 16212 | -5/Garrison | Core integrity fell below 20% 16358 | -5/Garrison | Triggered checkpoint 16424 | -5/Garrison | Expanded RIF knowledge: Structural Interface 16442 | -5/Garrison | Garrison Relay disabled 16504 | -5/Garrison | Spotted Striker 16504 | -5/Garrison | Spotted Striker 16546 | -5/Garrison | Discovered new exit (range 3) 16548 | -5/Garrison | Entered Factory 16548 | -4/Factory | Evolved 2 slots: Propulsion x1, Weapon x1 16574 | -4/Factory | Lost 12 parts (2p3n4u3w) 16581 | -4/Factory | Found Quantum Capacitor 16729 | -4/Factory | Spotted B-86 Titan 16789 | -4/Factory | Identified exit to Garrison 16789 | -4/Factory | Entered Garrison 16790 | -4/Garrison | Lost 7 parts (1p4n2u) 16795 | -4/Garrison | Build established: Mutant 16812 | -4/Garrison | Rewired B-86 Titan 16814 | -4/Garrison | Spotted B-90 Cyclops 16884 | -4/Garrison | Found Hvy. Reflective Plating 17020 | -4/Garrison | Triggered checkpoint 17284 | -4/Garrison | Triggered checkpoint 17299 | -4/Garrison | Build established: Scavenger-Skirmisher 17353 | -4/Garrison | Garrison Relay disabled 17392 | -4/Garrison | Core integrity fell below 50% 17407 | -4/Garrison | Lost 7 parts (1p1n2u3w) 17507 | -4/Garrison | Discovered new exit (range 14) 17584 | -4/Garrison | Triggered checkpoint 17666 | -4/Garrison | Triggered checkpoint 17669 | -4/Garrison | Discovered new exit (range 3) 17670 | -4/Garrison | Entered Factory 17699 | -4/Factory | Identified exit to Garrison 17723 | -4/Factory | Discovered new exit (range 41) 17776 | -4/Factory | Entered Garrison 17784 | -4/Garrison | Expanded RIF knowledge: Command Fork 17805 | -4/Garrison | Spotted B-86 Titan 17822 | -4/Garrison | Triggered checkpoint 17896 | -4/Garrison | Triggered checkpoint 17938 | -4/Garrison | Triggered checkpoint 17954 | -4/Garrison | Triggered checkpoint 17980 | -4/Garrison | Heavy support dispatched to Factory 17994 | -4/Garrison | Discovered new exit (range 3) 17996 | -4/Garrison | Core integrity fell below 20% 17998 | -4/Garrison | Entered Factory 18022 | -4/Factory | Identified exit to Garrison 18023 | -4/Factory | Lost 9 parts (2p1n3u3w) 18023 | -4/Factory | Entered Garrison 18094 | -4/Garrison | Triggered checkpoint 18297 | -4/Garrison | Spotted B-86 Titan 18302 | -4/Garrison | Triggered checkpoint 18426 | -4/Garrison | Core destroyed Last Messages --------------- 18410_ Adv. Power Amplifier destroyed. 18411_ Destroyed Hvy. Reflective Plating. 18413_ Power failure, Quantum Reactor shutdown. 18414_ Penetrated by Slug. 18414_ Slug penetrates Wall. 18415_ ZUY:V